bitfinex/quotes_BTCUSD_20240721
["timestamp","ask_amount","ask_price","bid_price","bid_amount"]
[1721537083676,1.73976739,67209.0,67208.0,0.002924]
[1721537083869,1.7630495,67209.0,67208.0,0.002924]
[1721537084650,1.80747724,67209.0,67208.0,0.002924]
[1721537085037,1.7630495,67209.0,67208.0,0.002924]
[1721537085244,1.80747724,67209.0,67208.0,0.002924]
[1721537086338,1.6998495,67209.0,67208.0,0.002924]
[1721537088497,1.74428427,67209.0,67208.0,0.002924]
[1721537089875,1.66448427,67209.0,67208.0,0.002924]
[1721537090075,1.20435482,67209.0,67208.0,0.144924]
[1721537090275,1.18101978,67209.0,67208.0,0.144924]
[1721537091869,1.18101978,67209.0,67208.0,0.002924]
[1721537094918,1.25721978,67209.0,67208.0,0.002924]
[1721537095171,1.40294121,67209.0,67208.0,0.002924]
[1721537096207,1.32674121,67209.0,67208.0,0.002924]
[1721537096424,1.32674121,67209.0,67208.0,0.147224]
[1721537097259,1.37118443,67209.0,67208.0,0.147224]
[1721537099432,1.39446546,67209.0,67208.0,0.147224]
[1721537100218,1.35002224,67209.0,67208.0,0.147224]
[1721537100419,1.39448206,67209.0,67208.0,0.147224]
[1721537100783,1.35002224,67209.0,67208.0,0.147224]
[1721537100987,1.39448206,67209.0,67208.0,0.147224]
[1721537101271,1.17936063,67209.0,67208.0,0.147224]
[1721537101481,1.24876063,67209.0,67208.0,0.147224]
[1721537102551,1.24876063,67209.0,67208.0,0.066724]
[1721537102755,1.24876587,67209.0,67208.0,0.066724]
[1721537103133,1.20430081,67209.0,67208.0,0.066724]
[1721537103361,1.35140993,67209.0,67208.0,0.066724]
[1721537106294,1.24877961,67209.0,67208.0,0.066724]
[1721537106523,1.20430081,67209.0,67208.0,0.147224]
[1721537107845,0.74245607,67209.0,67208.0,0.147224]
[1721537108256,0.81185607,67209.0,67208.0,0.147224]
[1721537108472,0.78857504,67209.0,67208.0,0.27080025]
[1721537108965,0.78857504,67209.0,67208.0,0.28830547]
[1721537109107,0.78857504,67209.0,67208.0,0.16472922]
[1721537109306,0.78857504,67209.0,67208.0,0.28830338]
[1721537109532,0.78857504,67209.0,67208.0,0.27079816]
[1721537109743,0.78857504,67209.0,67208.0,0.28830338]
[1721537110244,0.84089924,67209.0,67208.0,0.28830338]
[1721537110615,0.78857504,67209.0,67208.0,0.28830338]
[1721537111403,0.78857504,67209.0,67208.0,0.27079816]
[1721537111809,0.78857504,67209.0,67208.0,0.28830338]
[1721537118921,0.71917504,67209.0,67208.0,0.28830338]
[1721537119151,0.78857504,67209.0,67208.0,0.28830338]
[1721537119359,0.78857504,67209.0,67208.0,0.27079816]
[1721537119757,0.78857504,67209.0,67208.0,0.28829557]
[1721537121899,0.78857504,67209.0,67208.0,0.16472141]
[1721537122095,0.78857504,67209.0,67208.0,0.2882942]
[1721537122338,0.78857504,67209.0,67208.0,0.27079679]
[1721537122497,0.78857504,67209.0,67208.0,0.28839731]
[1721537124680,0.55051204,67209.0,67208.0,0.28839731]
[1721537124886,0.24304904,67209.0,67208.0,0.28839731]
[1721537125110,0.24304904,67209.0,67208.0,0.147224]
[1721537125111,0.234031,67209.0,67208.0,0.147224]
[1721537125310,0.234031,67209.0,67208.0,0.28839488]
[1721537125841,0.226031,67209.0,67208.0,0.28739488]
[1721537126249,0.227031,67209.0,67208.0,0.28739488]
[1721537126780,0.229031,67209.0,67208.0,0.28739488]
[1721537126971,0.227031,67209.0,67208.0,0.28739488]
[1721537127354,0.219031,67209.0,67208.0,0.28839488]
[1721537127554,0.1,67209.0,67208.0,0.28839488]
[1721537127749,0.001,67209.0,67208.0,0.28499488]
[1721537128477,0.001,67209.0,67208.0,0.28499381]
[1721537130282,0.427494,67209.0,67208.0,0.28499381]
[1721537130463,0.58111711,67209.0,67208.0,0.20509381]
[1721537130674,0.81918011,67209.0,67208.0,0.20509381]
[1721537130931,0.81918011,67209.0,67208.0,0.08152452]
[1721537131232,0.81918011,67209.0,67208.0,0.063924]
[1721537131427,0.81918011,67209.0,67208.0,0.18750122]
[1721537131635,0.765557,67209.0,67208.0,0.063924]
[1721537131834,0.765557,67209.0,67208.0,0.18750109]
[1721537132075,0.765557,67209.0,67208.0,0.063924]
[1721537132280,0.765557,67209.0,67208.0,0.18750079]
[1721537134442,0.765557,67209.0,67208.0,0.12650079]
[1721537134686,0.84087366,67209.0,67208.0,0.002924]
[1721537134897,0.84087366,67209.0,67208.0,0.12649984]
[1721537135343,0.91637366,67209.0,67208.0,0.12649984]
[1721537136753,0.765557,67209.0,67208.0,0.12649984]
[1721537137709,0.765557,67209.0,67208.0,0.26739984]
[1721537138136,0.765557,67209.0,67208.0,0.28498969]
[1721537141006,0.765557,67209.0,67208.0,0.28498325]
[1721537143929,0.220031,67209.0,67208.0,0.28498325]
[1721537144129,0.101,67209.0,67208.0,0.28498325]
[1721537144303,0.001,67209.0,67208.0,0.143824]
[1721537144536,0.001,67209.0,67208.0,0.28498539]
[1721537144710,0.001,67209.0,67208.0,0.16141671]
[1721537144947,0.001,67209.0,67208.0,0.2849853]
[1721537145274,0.101,67209.0,67208.0,0.2849853]
[1721537147374,0.220031,67209.0,67208.0,0.2849853]
[1721537147599,0.220031,67209.0,67208.0,0.28498531]
[1721537149065,0.527494,67209.0,67208.0,0.28498531]
[1721537149322,0.527494,67209.0,67208.0,0.2673926]
[1721537149701,0.527494,67209.0,67208.0,0.28498531]
[1721537150640,0.527494,67209.0,67208.0,0.16141671]
[1721537150795,0.527494,67209.0,67208.0,0.28499036]
[1721537151623,0.527494,67209.0,67208.0,0.14409036]
[1721537157018,0.527494,67209.0,67208.0,0.1440854]
[1721537160199,0.527494,67209.0,67208.0,0.14408539]
[1721537160960,0.458094,67209.0,67208.0,0.14408539]
[1721537161161,0.527494,67209.0,67208.0,0.14408539]
[1721537161363,0.527494,67209.0,67208.0,0.20399268]
[1721537161987,0.458094,67209.0,67208.0,0.20399268]
[1721537163021,0.458094,67209.0,67208.0,0.22158372]
[1721537163223,0.458094,67209.0,67208.0,0.12649268]
[1721537163351,0.458094,67209.0,67208.0,0.14408372]
[1721537163570,0.458094,67209.0,67208.0,0.12649268]
[1721537167464,0.458094,67209.0,67208.0,0.002924]
[1721537167675,0.458094,67209.0,67208.0,0.12649268]
[1721537169520,0.696157,67209.0,67208.0,0.002924]
[1721537169706,0.696157,67209.0,67208.0,0.12649268]
[1721537172251,0.696157,67209.0,67208.0,0.002924]
[1721537172436,0.696157,67209.0,67208.0,0.12649268]
[1721537174385,0.71172193,67209.0,67208.0,0.12649268]
[1721537184029,0.71172193,67209.0,67208.0,0.14403932]
[1721537184170,0.75631576,67209.0,67208.0,0.14403932]
[1721537184518,0.75631576,67209.0,67208.0,0.12649268]
[1721537184891,0.75631794,67209.0,67208.0,0.12649268]
[1721537185102,0.75631794,67209.0,67208.0,0.002924]
[1721537185300,0.75631794,67209.0,67208.0,0.12649268]
[1721537186376,0.75631869,67209.0,67208.0,0.12649268]
[1721537188478,0.75631869,67209.0,67208.0,0.002924]
[1721537188479,0.75631559,67209.0,67208.0,0.002924]
[1721537188676,0.75631559,67209.0,67208.0,0.12649268]
[1721537191746,0.71172193,67209.0,67208.0,0.065824]
[1721537191944,0.71172193,67209.0,67208.0,0.26919267]
[1721537191945,0.75631105,67209.0,67208.0,0.26919267]
[1721537192159,0.75631105,67209.0,67208.0,0.145624]
[1721537192160,0.47365893,67209.0,67208.0,0.145624]
[1721537192356,0.51824778,67209.0,67208.0,0.28673931]
[1721537192567,0.51824778,67209.0,67208.0,0.26919267]
[1721537192767,0.51824778,67209.0,67208.0,0.28673931]
[1721537194849,0.47365893,67209.0,67208.0,0.16317064]
[1721537195060,0.5182472,67209.0,67208.0,0.28673931]
[1721537195998,0.5182472,67209.0,67208.0,0.20693931]
[1721537196197,0.5876472,67209.0,67208.0,0.20693931]
[1721537197055,0.5876472,67209.0,67208.0,0.14403931]
[1721537198292,0.71823348,67209.0,67208.0,0.14403931]
[1721537198508,1.07488728,67209.0,67208.0,0.12649267]
[1721537198713,1.05932235,67209.0,67208.0,0.12649267]
[1721537198920,1.3865619,67209.0,67208.0,0.12649267]
[1721537199068,1.40212767,67209.0,67208.0,0.12649267]
[1721537199905,1.27154139,67209.0,67208.0,0.12649267]
[1721537200482,1.18236484,67209.0,67208.0,0.12649267]
[1721537201196,1.18236484,67209.0,67208.0,0.12650167]
[1721537201402,0.94430184,67209.0,67208.0,0.12650167]
[1721537201979,1.18236484,67209.0,67208.0,0.12650167]
[1721537204176,1.24921657,67209.0,67208.0,0.12650167]
[1721537204511,1.15908577,67209.0,67208.0,0.12650167]
[1721537204676,1.18236553,67209.0,67208.0,0.12650167]
[1721537204856,1.18236553,67209.0,67208.0,0.002924]
[1721537205061,1.18236553,67209.0,67208.0,0.12650262]
[1721537206256,1.22592722,67209.0,67208.0,0.12650262]
[1721537207243,1.16312722,67209.0,67208.0,0.12650262]
[1721537207709,1.09628577,67209.0,67208.0,0.002924]
[1721537207920,1.16311473,67209.0,67208.0,0.12650207]
[1721537210923,1.16310492,67209.0,67208.0,0.12650206]
[1721537212519,1.09628577,67209.0,67208.0,0.12650206]
[1721537213353,1.08072,67209.0,67208.0,0.12650206]
[1721537214180,1.08072,67209.0,67208.0,0.002924]
[1721537214634,0.842657,67209.0,67208.0,0.12649742]
[1721537215338,0.88720111,67209.0,67208.0,0.12649742]
[1721537215583,1.12526411,67209.0,67208.0,0.12649742]
[1721537216058,1.1251501,67209.0,67208.0,0.12649742]
[1721537217238,0.8870871,67209.0,67208.0,0.12649742]
[1721537217500,0.84254299,67209.0,67208.0,0.002924]
[1721537217733,0.88708636,67209.0,67208.0,0.12649962]
[1721537217978,0.88708636,67209.0,67208.0,0.002924]
[1721537218201,0.88708636,67209.0,67208.0,0.12649962]
[1721537218482,1.12514936,67209.0,67208.0,0.12649962]
[1721537219537,1.08060599,67209.0,67208.0,0.12649962]
[1721537220032,1.12514971,67209.0,67208.0,0.12649962]
[1721537220269,1.66216208,67209.0,67208.0,0.002924]
[1721537220465,1.35829311,67209.0,67208.0,0.002924]
[1721537221184,1.35740712,67209.0,67208.0,0.000924]
[1721537221400,1.35740712,67209.0,67208.0,0.001924]
[1721537221599,1.33388251,67209.0,67208.0,0.002924]
[1721537221795,1.20198251,67209.0,67208.0,0.001924]
[1721537222048,1.19728251,67209.0,67208.0,0.001924]
[1721537222219,1.30860739,67209.0,67208.0,0.001924]
[1721537222419,1.31460739,67209.0,67208.0,0.002924]
[1721537223034,1.3145975,67209.0,67208.0,0.002924]
[1721537223805,1.2975975,67209.0,67208.0,0.001924]
[1721537224006,1.2975975,67209.0,67208.0,0.002924]
[1721537224213,1.3055975,67209.0,67208.0,0.001924]
[1721537224431,1.2995975,67209.0,67208.0,0.001924]
[1721537224647,1.3125975,67209.0,67208.0,0.003924]
[1721537225118,1.3125975,67209.0,67208.0,0.002924]
[1721537225329,1.19328251,67209.0,67208.0,0.002924]
[1721537225539,1.20128251,67209.0,67208.0,0.003924]
[1721537231462,1.26806805,67209.0,67208.0,0.003924]
[1721537232217,1.20128251,67209.0,67208.0,0.003924]
[1721537233139,0.80883777,67209.0,67208.0,0.080224]
[1721537234552,0.73943777,67209.0,67208.0,0.080224]
[1721537234792,0.04428077,67209.0,67208.0,0.145724]
[1721537235059,0.021,67209.0,67208.0,0.26929537]
[1721537235305,0.021,67209.0,67208.0,0.28509586]
[1721537235536,0.013,67209.0,67208.0,0.28409586]
[1721537236013,0.013,67209.0,67208.0,0.16052449]
[1721537236265,0.013,67209.0,67208.0,0.28409091]
[1721537236506,0.013,67209.0,67208.0,0.28409183]
[1721537236966,0.007,67209.0,67208.0,0.28309183]
[1721537237431,0.008,67209.0,67208.0,0.29009183]
[1721537237692,0.01556624,67213.0,67208.0,0.28209183]
[1721537237938,0.119026,67212.0,67209.0,0.26726734]
[1721537238181,0.119026,67212.0,67210.0,0.26726734]
[1721537238387,0.119026,67212.0,67211.0,0.12356734]
[1721537238591,0.219026,67212.0,67211.0,0.12356734]
[1721537238797,0.219026,67212.0,67211.0,0.13936086]
[1721537239216,0.219026,67212.0,67211.0,0.13935902]
[1721537240544,0.219026,67212.0,67211.0,0.28505902]
[1721537240958,0.220026,67212.0,67211.0,0.29205902]
[1721537243254,0.527478,67212.0,67211.0,0.29205902]
[1721537243461,0.527478,67212.0,67211.0,0.21335902]
[1721537246467,0.527478,67212.0,67211.0,0.08979352]
[1721537246701,0.527478,67212.0,67211.0,0.21335906]
[1721537246927,0.527478,67212.0,67211.0,0.08979352]
[1721537247133,0.527478,67212.0,67211.0,0.21335906]
[1721537249668,0.527478,67212.0,67211.0,0.08979352]
[1721537249877,0.527478,67212.0,67211.0,0.21335906]
[1721537256305,0.527478,67212.0,67211.0,0.21335905]
[1721537256741,0.527478,67212.0,67211.0,0.08979352]
[1721537256943,0.527478,67212.0,67211.0,0.21335905]
[1721537259843,0.528318,67212.0,67211.0,0.21335905]
[1721537262524,0.55159586,67212.0,67211.0,0.21335905]
[1721537262965,0.78964786,67212.0,67211.0,0.14835905]
[1721537263456,0.78964786,67212.0,67211.0,0.13256553]
[1721537263712,1.02769986,67212.0,67211.0,0.14835295]
[1721537263919,1.10459986,67212.0,67211.0,0.14835295]
[1721537264129,1.10459986,67212.0,67211.0,0.13256553]
[1721537266112,1.10459986,67212.0,67211.0,0.13257343]
[1721537267979,1.46052964,67212.0,67211.0,0.13257343]
[1721537268193,1.46052964,67212.0,67211.0,0.009]
[1721537268194,1.3228816,67212.0,67211.0,0.009]
[1721537268397,1.38963044,67212.0,67211.0,0.009]
[1721537268605,1.3228816,67212.0,67211.0,0.009]
[1721537268813,1.38964862,67212.0,67211.0,0.009]
[1721537269223,1.38864862,67212.0,67211.0,0.002]
[1721537269645,1.39164862,67212.0,67211.0,0.002]
[1721537269851,1.38865606,67212.0,67211.0,0.002]
[1721537270263,0.83322,67209.0,67208.0,0.000924]
[1721537270438,1.12479581,67209.0,67208.0,0.12450169]
[1721537271466,1.10151795,67209.0,67208.0,0.12450169]
[1721537272186,1.13079752,67209.0,67208.0,0.12550169]
[1721537272387,1.13080912,67209.0,67208.0,0.12550169]
[1721537272598,1.08828131,67209.0,67208.0,0.12550169]
[1721537272776,1.06500174,67209.0,67208.0,0.12550169]
[1721537274441,1.1095359,67209.0,67208.0,0.12550169]
[1721537275674,1.10953407,67209.0,67208.0,0.12549966]
[1721537278888,1.06500174,67209.0,67208.0,0.12549966]
[1721537279083,1.10953122,67209.0,67208.0,0.12549966]
[1721537281531,1.10953092,67209.0,67208.0,0.12550044]
[1721537281858,1.10953093,67209.0,67208.0,0.12550042]
[1721537282083,1.10953092,67209.0,67208.0,0.12550042]
[1721537283532,1.04013092,67209.0,67208.0,0.12550042]
[1721537283721,0.434494,67209.0,67208.0,0.20810042]
[1721537284026,0.434494,67209.0,67208.0,0.2833395]
[1721537284642,0.434494,67209.0,67208.0,0.28333778]
[1721537286432,0.672557,67209.0,67208.0,0.28333778]
[1721537287834,0.672557,67209.0,67208.0,0.28333785]
[1721537292718,0.673397,67209.0,67208.0,0.28333785]
[1721537293122,0.673397,67209.0,67208.0,0.26909877]
[1721537293578,0.673397,67209.0,67208.0,0.28333546]
[1721537294372,0.673397,67209.0,67208.0,0.28333066]
[1721537294778,0.673397,67209.0,67208.0,0.28333198]
[1721537295001,0.673397,67209.0,67208.0,0.15976069]
[1721537295117,0.673397,67209.0,67208.0,0.28333211]
[1721537295915,0.673397,67209.0,67208.0,0.13973211]
[1721537297432,0.673397,67209.0,67208.0,0.001924]
[1721537297717,0.673397,67209.0,67208.0,0.12549493]
[1721537298061,0.673397,67209.0,67208.0,0.13973162]
[1721537299075,0.603997,67209.0,67208.0,0.28753162]
[1721537299273,0.365934,67209.0,67208.0,0.28753162]
[1721537300789,0.365934,67209.0,67208.0,0.16396069]
[1721537301049,0.365934,67209.0,67208.0,0.28652995]
[1721537301050,0.357934,67209.0,67208.0,0.28652995]
[1721537301175,0.363934,67209.0,67208.0,0.28752995]
[1721537301381,0.364934,67209.0,67208.0,0.29252995]
[1721537301790,0.358934,67209.0,67208.0,0.29152995]
[1721537304509,0.358934,67209.0,67208.0,0.16796069]
[1721537304714,0.358934,67209.0,67208.0,0.29152803]
[1721537307252,0.358934,67209.0,67208.0,0.2915277]
[1721537310525,0.358934,67209.0,67208.0,0.16796069]
[1721537310717,0.358934,67209.0,67208.0,0.29152454]
[1721537313782,0.358934,67209.0,67208.0,0.29152474]
[1721537314196,0.358934,67209.0,67208.0,0.29152628]
[1721537316921,0.358934,67209.0,67208.0,0.16796069]
[1721537317123,0.358934,67209.0,67208.0,0.29152622]
[1721537320521,0.358934,67209.0,67208.0,0.29152616]
[1721537323485,0.358934,67209.0,67208.0,0.16796069]
[1721537323693,0.358934,67209.0,67208.0,0.29152615]
[1721537323902,0.358934,67209.0,67208.0,0.16796069]
[1721537324101,0.358934,67209.0,67208.0,0.29152615]
[1721537326694,0.358934,67209.0,67208.0,0.16796069]
[1721537326893,0.358934,67209.0,67208.0,0.29152615]
[1721537329439,0.358934,67209.0,67208.0,0.14372615]
[1721537329641,0.358934,67209.0,67208.0,0.12948946]
[1721537329853,0.358934,67209.0,67208.0,0.14231733]
[1721537330092,0.358934,67209.0,67208.0,0.14232202]
[1721537330719,0.437434,67209.0,67208.0,0.14232202]
[1721537331068,0.675497,67209.0,67208.0,0.14232202]
[1721537331284,0.675497,67209.0,67208.0,0.12949415]
[1721537331735,0.596997,67209.0,67208.0,0.12949415]
[1721537332059,0.358934,67209.0,67208.0,0.12949415]
[1721537332354,0.596997,67209.0,67208.0,0.12949415]
[1721537333785,0.596997,67209.0,67208.0,0.129495]
[1721537335234,0.73285026,67209.0,67208.0,0.129495]
[1721537336574,0.73285026,67209.0,67208.0,0.005924]
[1721537336777,0.73285026,67209.0,67208.0,0.12949458]
[1721537337535,0.77741031,67209.0,67208.0,0.12949458]
[1721537339198,0.73285026,67209.0,67208.0,0.12949458]
[1721537339621,0.77741031,67209.0,67208.0,0.12949458]
[1721537339839,0.77741031,67209.0,67208.0,0.005924]
[1721537340029,0.7774113,67209.0,67208.0,0.12949557]
[1721537340245,1.0154743,67209.0,67208.0,0.12949557]
[1721537340388,0.7774113,67209.0,67208.0,0.12949557]
[1721537340794,0.78525804,67209.0,67208.0,0.12949557]
[1721537341228,1.02332104,67209.0,67208.0,0.12949557]
[1721537341428,0.78525804,67209.0,67208.0,0.12949557]
[1721537341632,1.02332104,67209.0,67208.0,0.12949557]
[1721537342349,1.02332089,67209.0,67208.0,0.12949734]
[1721537342767,1.02331913,67209.0,67208.0,0.12949734]
[1721537343388,1.17031393,67209.0,67208.0,0.12949734]
[1721537345203,1.17031315,67209.0,67208.0,0.12949734]
[1721537345409,0.95811736,67209.0,67208.0,0.12949732]
[1721537346999,1.10267472,67209.0,67208.0,0.12949732]
[1721537347227,1.1867354,67209.0,67208.0,0.005924]
[1721537347462,1.09763993,67209.0,67208.0,0.005924]
[1721537348117,1.25027527,67209.0,67208.0,0.005924]
[1721537348532,1.33935629,67209.0,67208.0,0.005924]
[1721537348735,1.25027527,67209.0,67208.0,0.005924]
[1721537349138,1.33934667,67209.0,67208.0,0.005924]
[1721537351803,1.25027527,67209.0,67208.0,0.005924]
[1721537352009,1.33932608,67209.0,67208.0,0.005924]
[1721537352278,1.33932607,67209.0,67208.0,0.005924]
[1721537353884,1.73177081,67209.0,67208.0,0.005924]
[1721537354136,1.64272001,67209.0,67208.0,0.005924]
[1721537354364,1.7317718,67209.0,67208.0,0.005924]
[1721537354620,1.64272001,67209.0,67208.0,0.005924]
[1721537355328,1.64772001,67209.0,67208.0,0.001924]
[1721537355555,1.74377021,67209.0,67208.0,0.002924]
[1721537356643,1.73777021,67209.0,67208.0,0.001924]
[1721537356869,1.74377021,67209.0,67208.0,0.002924]
[1721537358275,1.65472001,67209.0,67208.0,0.002924]
[1721537358499,1.74375141,67209.0,67208.0,0.002924]
[1721537360380,1.65472001,67209.0,67208.0,0.002924]
[1721537360598,1.41665701,67209.0,67208.0,0.002924]
[1721537361857,1.50567376,67209.0,67208.0,0.002924]
[1721537362083,1.50567355,67209.0,67208.0,0.002924]
[1721537362281,1.41665701,67209.0,67208.0,0.002924]
[1721537371535,1.50564081,67209.0,67208.0,0.002924]
[1721537374525,1.5056526,67209.0,67208.0,0.002924]
[1721537376883,1.41665701,67209.0,67208.0,0.002924]
[1721537377348,1.5056526,67209.0,67208.0,0.002924]
[1721537380085,1.4448526,67209.0,67208.0,0.002924]
[1721537381136,1.35585701,67209.0,67208.0,0.002924]
[1721537381358,1.44486993,67209.0,67208.0,0.002924]
[1721537381572,1.44487482,67209.0,67208.0,0.002924]
[1721537382447,1.35585701,67209.0,67208.0,0.002924]
[1721537382662,1.44488101,67209.0,67208.0,0.002924]
[1721537382873,1.35585701,67209.0,67208.0,0.002924]
[1721537386334,1.46715295,67209.0,67208.0,0.002924]
[1721537386542,1.35585701,67209.0,67208.0,0.002924]
[1721537387393,1.46715295,67209.0,67208.0,0.002924]
[1721537387590,1.35585701,67209.0,67208.0,0.002924]
[1721537387800,1.46717259,67209.0,67208.0,0.002924]
[1721537390390,1.35585701,67209.0,67208.0,0.002924]
[1721537396167,1.59392001,67209.0,67208.0,0.002924]
[1721537400236,1.51542001,67209.0,67208.0,0.002924]
[1721537403725,1.27735701,67209.0,67208.0,0.002924]
[1721537407766,1.51542001,67209.0,67208.0,0.002924]
[1721537409867,1.27735701,67209.0,67208.0,0.002924]
[1721537411838,1.70582001,67209.0,67208.0,0.002924]
[1721537412075,1.70582001,67209.0,67190.0,0.52685019]
[1721537412076,0.833392,67195.0,67194.0,0.1401]
[1721537412331,1.19177025,67195.0,67194.0,0.1401]
[1721537412570,1.29177025,67195.0,67194.0,0.15304985]
[1721537412815,1.18045367,67195.0,67194.0,0.15304985]
[1721537413053,1.29169812,67195.0,67194.0,0.1401]
[1721537413295,1.29169551,67195.0,67194.0,0.1401]
[1721537413545,1.18045367,67195.0,67194.0,0.1401]
[1721537413761,1.26941223,67195.0,67194.0,0.1401]
[1721537414218,1.18045367,67195.0,67194.0,0.1401]
[1721537414458,1.26938651,67195.0,67194.0,0.1401]
[1721537414661,1.18045367,67195.0,67194.0,0.1401]
[1721537414881,1.18145367,67195.0,67194.0,0.1401]
[1721537415086,1.18145367,67195.0,67194.0,0.1411]
[1721537415717,1.33580324,67195.0,67194.0,0.1411]
[1721537417325,1.40248875,67195.0,67194.0,0.1411]
[1721537419152,1.40248875,67195.0,67194.0,0.0645]
[1721537419350,1.24813918,67195.0,67194.0,0.001]
[1721537419555,1.24813918,67195.0,67194.0,0.001924]
[1721537421483,1.18145367,67195.0,67194.0,0.001924]
[1721537424142,1.2481001,67195.0,67194.0,0.001924]
[1721537424555,1.15817374,67195.0,67194.0,0.001924]
[1721537424964,1.23347374,67195.0,67194.0,0.001924]
[1721537425170,1.15817374,67195.0,67194.0,0.001924]
[1721537425373,1.16725718,67195.0,67194.0,0.001924]
[1721537425582,1.21167002,67195.0,67194.0,0.001924]
[1721537426417,1.36601959,67195.0,67194.0,0.001924]
[1721537426824,1.21167002,67195.0,67194.0,0.001924]
[1721537428329,1.30955718,67195.0,67194.0,0.001924]
[1721537428520,1.290357,67195.0,67194.0,0.001924]
[1721537429292,1.211657,67195.0,67194.0,0.001924]
[1721537429530,1.16725718,67195.0,67194.0,0.001924]
[1721537429733,1.25012541,67195.0,67194.0,0.001924]
[1721537437227,1.16725718,67195.0,67194.0,0.067624]
[1721537439873,1.16725718,67195.0,67194.0,0.001924]
[1721537440106,1.24595718,67195.0,67194.0,0.001924]
[1721537441308,1.16725718,67195.0,67194.0,0.001924]
[1721537441796,1.19054334,67195.0,67194.0,0.001924]
[1721537442530,1.25621841,67195.0,67194.0,0.001924]
[1721537444019,1.19054334,67195.0,67194.0,0.001924]
[1721537447600,1.23493171,67195.0,67194.0,0.001924]
[1721537447811,1.19054334,67195.0,67194.0,0.001924]
[1721537448019,1.23493911,67195.0,67194.0,0.001924]
[1721537448478,1.19054334,67195.0,67194.0,0.001924]
[1721537448713,1.31864895,67195.0,67194.0,0.001924]
[1721537450516,1.38524261,67195.0,67194.0,0.001924]
[1721537450947,1.31864895,67195.0,67194.0,0.001924]
[1721537451588,1.25716077,67195.0,67194.0,0.001924]
[1721537452273,1.19054334,67195.0,67194.0,0.001924]
[1721537452485,1.25716944,67195.0,67194.0,0.001924]
[1721537453351,1.19054334,67195.0,67194.0,0.001924]
[1721537454477,1.27940778,67195.0,67194.0,0.001924]
[1721537454695,1.19054334,67195.0,67194.0,0.001924]
[1721537455118,1.27940778,67195.0,67194.0,0.001924]
[1721537455547,1.5397359,67195.0,67194.0,0.001924]
[1721537456209,1.42865534,67195.0,67194.0,0.001924]
[1721537456414,1.5397359,67195.0,67194.0,0.001924]
[1721537456845,1.42865534,67195.0,67194.0,0.000924]
[1721537457269,1.43265534,67195.0,67194.0,0.000924]
[1721537457719,1.43165534,67195.0,67194.0,0.000924]
[1721537459935,1.72440491,67195.0,67194.0,0.000924]
[1721537462083,1.66220491,67195.0,67194.0,0.000924]
[1721537462293,1.66220491,67195.0,67186.0,0.000924]
[1721537462294,1.071893,67187.0,67186.0,0.000924]
[1721537462508,1.071893,67187.0,67171.0,0.0645]
[1721537462509,0.357249,67180.0,67171.0,0.0645]
[1721537462721,0.595467,67174.0,67171.0,0.0645]
[1721537462941,1.03148659,67174.0,67171.0,0.0645]
[1721537463167,1.26967324,67174.0,67171.0,0.0645]
[1721537463382,1.55699514,67174.0,67171.0,0.0645]
[1721537463593,1.62365777,67174.0,67171.0,0.0645]
[1721537464275,1.64587864,67174.0,67167.0,0.55279879]
[1721537464515,1.62361777,67174.0,67167.0,0.55279879]
[1721537464729,1.63319514,67174.0,67167.0,0.55279879]
[1721537464945,1.64019514,67174.0,67173.0,0.001924]
[1721537465425,1.64419514,67174.0,67173.0,0.001924]
[1721537466166,1.56799514,67174.0,67173.0,0.001924]
[1721537466653,1.58908185,67174.0,67173.0,0.001924]
[1721537467529,1.54470898,67174.0,67173.0,0.001924]
[1721537468812,1.68560898,67174.0,67173.0,0.001924]
[1721537471390,1.23712198,67174.0,67173.0,0.001924]
[1721537471600,1.30652198,67174.0,67173.0,0.001924]
[1721537472233,0.833703,67170.0,67169.0,0.037724]
[1721537472445,1.15748474,67170.0,67169.0,0.037724]
[1721537473304,1.31183431,67170.0,67169.0,0.037724]
[1721537473743,1.31483431,67170.0,67169.0,0.012724]
[1721537474710,1.31183431,67170.0,67169.0,0.012724]
[1721537474947,1.16448474,67170.0,67169.0,0.013724]
[1721537475433,1.16848474,67170.0,67169.0,0.013724]
[1721537476570,1.16148474,67170.0,67169.0,0.012724]
[1721537476778,1.30232355,67170.0,67169.0,0.013724]
[1721537476988,1.31032355,67170.0,67169.0,0.013724]
[1721537480891,1.31032355,67170.0,67169.0,0.001]
[1721537483912,1.31032355,67170.0,67169.0,0.001924]
[1721537484788,1.31116355,67170.0,67169.0,0.001924]
[1721537494414,1.33445771,67170.0,67169.0,0.001924]
[1721537495241,1.1936189,67170.0,67169.0,0.001924]
[1721537496938,0.9554179,67170.0,67169.0,0.079824]
[1721537497541,0.9554179,67170.0,67169.0,0.20347723]
[1721537497745,0.9554179,67170.0,67169.0,0.26597723]
[1721537497949,1.07565013,67170.0,67169.0,0.28471481]
[1721537498808,0.9554179,67170.0,67169.0,0.28471481]
[1721537499019,0.9554179,67170.0,67169.0,0.28471467]
[1721537500765,0.01284,67170.0,67169.0,0.40381667]
[1721537501185,0.01284,67170.0,67169.0,0.64202167]
[1721537501819,0.00084,67170.0,67169.0,0.64102167]
[1721537502027,0.00084,67170.0,67169.0,0.64099698]
[1721537502028,0.00384,67170.0,67169.0,0.64099698]
[1721537502240,0.00384,67170.0,67169.0,0.64299698]
[1721537502659,0.00484,67170.0,67169.0,0.64299698]
[1721537503543,0.00484,67170.0,67169.0,0.64099698]
[1721537503760,0.00484,67170.0,67169.0,0.64399698]
[1721537505334,0.00484,67170.0,67169.0,0.64399697]
[1721537507216,0.00484,67170.0,67169.0,0.40579197]
[1721537507427,0.362141,67170.0,67169.0,0.28668997]
[1721537507635,0.362141,67170.0,67169.0,0.14628997]
[1721537507636,0.88539664,67170.0,67169.0,0.14628997]
[1721537507846,0.88539664,67170.0,67169.0,0.02266158]
[1721537507847,1.22359764,67170.0,67169.0,0.02266158]
[1721537508264,1.22359764,67170.0,67169.0,0.003924]
[1721537510183,0.92169664,67170.0,67169.0,0.003924]
[1721537510607,1.15989764,67170.0,67169.0,0.003924]
[1721537512983,0.92169664,67170.0,67169.0,0.003924]
[1721537513834,1.15989764,67170.0,67169.0,0.003924]
[1721537514037,0.92169664,67170.0,67169.0,0.003924]
[1721537515761,0.462141,67170.0,67169.0,0.149724]
[1721537515967,0.531541,67170.0,67169.0,0.149724]
[1721537516170,0.531541,67170.0,67169.0,0.1665981]
[1721537517637,0.769742,67170.0,67169.0,0.1665981]